bitfinex/quotes_SOLUSD_20250918
["timestamp","ask_amount","ask_price","bid_price","bid_amount"]
[1758191669618,1e-08,245.87,245.86,26.14216157]
[1758191669920,1e-08,245.87,245.86,26.82216157]
[1758191670495,1e-08,245.87,245.86,30.88951697]
[1758191671294,1e-08,245.87,245.86,35.91794001]
[1758191672623,1e-08,245.87,245.86,4.0673554]
[1758191673121,1e-08,245.87,245.86,4.20951697]
[1758191674595,1e-08,245.87,245.86,4.88951697]
[1758191675398,1e-08,245.87,245.86,30.88951697]
[1758191677503,1e-08,245.87,245.86,4.0673554]
[1758191678594,1e-08,245.87,245.86,4.7473554]
[1758191678802,1e-08,245.87,245.86,4.0673554]
[1758191679233,1e-08,245.87,245.86,30.0673554]
[1758191679735,1e-08,245.87,245.86,26.0]
[1758191679910,0.63000001,245.87,245.83,0.03]
[1758191680113,0.63,245.86,245.83,0.03]
[1758191680612,0.63,245.85,245.83,0.03]
[1758191681013,0.63,245.85,245.83,26.03]
[1758191681208,13.59559402,245.87,245.83,26.03]
[1758191681527,0.63,245.86,245.83,26.03]
[1758191682813,0.63,245.86,245.84,4.0676863]
[1758191683318,0.63,245.85,245.83,0.03]
[1758191683503,13.59559402,245.87,245.83,0.03]
[1758191683714,13.59559401,245.85,245.83,0.03]
[1758191684227,14.22559401,245.84,245.83,0.03]
[1758191687810,13.59559401,245.84,245.83,0.03]
[1758191690902,1e-08,245.87,245.83,0.03]
[1758191691108,13.59559401,245.85,245.83,0.03]
[1758191693031,0.63,245.84,245.83,0.03]
[1758191693521,15.69603682,245.84,245.83,0.03]
[1758191694124,17.32440296,245.84,245.83,0.03]
[1758191694706,15.85396015,245.84,245.83,0.03]
[1758191695326,19.92164645,245.84,245.83,0.03]
[1758191697608,18.29328031,245.84,245.83,0.03]
[1758191699606,14.22559401,245.84,245.83,0.03]
[1758191700644,13.59559401,245.84,245.83,0.03]
[1758191700928,14.22559401,245.84,245.83,0.03]
[1758191701418,18.29328031,245.84,245.83,0.03]
[1758191701934,19.92164645,245.84,245.83,0.03]
[1758191702112,14.22559401,245.84,245.83,0.03]
[1758191702430,15.85396015,245.84,245.83,0.03]
[1758191702933,14.22559401,245.84,245.83,0.03]
[1758191703334,13.59559401,245.84,245.83,0.03]
[1758191703835,13.59559401,245.84,245.83,0.71]
[1758191704213,13.59559401,245.84,245.83,0.03]
[1758191704830,13.59559401,245.84,245.83,0.71]
[1758191705332,1e-08,245.87,245.83,4.77785176]
[1758191705831,1e-08,245.87,245.84,0.68]
[1758191707129,1e-08,245.87,245.86,26.0]
[1758191707433,1e-08,245.87,245.86,30.0673554]
[1758191707632,1e-08,245.87,245.86,30.7473554]
[1758191710029,1e-08,245.87,245.84,4.06755758]
[1758191710235,1e-08,245.87,245.83,4.09785112]
[1758191710420,1e-08,245.87,245.83,4.77785112]
[1758191710826,1e-08,245.87,245.83,0.03]
[1758191711432,1e-08,245.87,245.83,0.71]
[1758191712835,1e-08,245.87,245.83,14.26743794]
[1758191713025,1e-08,245.87,245.84,0.68]
[1758191714421,1e-08,245.87,245.83,14.26743794]
[1758191714637,1e-08,245.87,245.84,0.68]
[1758191714827,1e-08,245.87,245.85,4.06752084]
[1758191715029,1e-08,245.87,245.85,4.74752084]
[1758191715233,1e-08,245.87,245.86,0.68]
[1758191715633,1e-08,245.87,245.85,4.06752084]
[1758191716139,1e-08,245.87,245.86,4.7473554]
[1758191716924,1e-08,245.87,245.86,30.7473554]
[1758191719041,1e-08,245.87,245.86,4.0673554]
[1758191719225,1e-08,245.87,245.86,4.7473554]
[1758191720149,1e-08,245.87,245.83,0.03]
[1758191720324,13.59559401,245.85,245.83,0.03]
[1758191720726,15.69603682,245.84,245.83,0.03]
[1758191722527,19.76372312,245.84,245.83,0.03]
[1758191723648,20.04804626,245.84,245.83,0.03]
[1758191724140,20.19020783,245.84,245.83,0.03]
[1758191725340,18.71976502,245.84,245.83,0.03]
[1758191725544,18.57760345,245.84,245.83,0.03]
[1758191725929,20.04804626,245.84,245.83,0.03]
[1758191726345,17.66328031,245.84,245.83,0.03]
[1758191728039,18.29328031,245.84,245.83,0.03]
[1758191728631,17.66328031,245.84,245.83,0.03]
[1758191729246,20.04804626,245.84,245.83,0.03]
[1758191729444,13.73775558,245.8,245.78,0.03]
[1758191729636,15.49252153,245.79,245.78,0.03]
[1758191729839,16.12252153,245.79,245.78,0.03]
[1758191730337,17.75155084,245.79,245.78,0.03]
[1758191730745,19.22199365,245.79,245.78,0.03]
[1758191730936,16.13894646,245.79,245.78,0.03]
[1758191731134,17.94843092,245.79,245.78,0.03]
[1758191732258,19.41887373,245.79,245.78,0.03]
[1758191736251,21.51931654,245.79,245.78,0.03]
[1758191738733,13.87991715,245.79,245.78,0.03]
[1758191738939,19.41887373,245.79,245.78,0.03]
[1758191739444,13.93991715,245.79,245.78,0.03]
[1758191739646,13.65559401,245.79,245.78,0.03]
[1758191740370,13.65559401,245.79,245.78,0.75]
[1758191741444,19.19455059,245.79,245.78,0.03]
[1758191741960,19.47887373,245.79,245.78,0.03]
[1758191743252,18.00843092,245.79,245.78,0.03]
[1758191743764,13.65559401,245.79,245.78,0.75]
[1758191747262,13.65559401,245.79,245.78,4.8186793]
[1758191748345,0.06,245.79,245.78,4.8186793]
[1758191750171,0.06,245.79,245.78,30.8186793]
[1758191753061,13.65559401,245.79,245.78,0.75]
[1758191753950,0.06,245.79,245.78,4.8186793]
[1758191760875,0.06,245.79,245.78,30.8186793]
[1758191761173,0.06,245.79,245.78,0.75]
[1758191761875,0.06,245.79,245.78,4.8186793]
[1758191763654,0.06,245.79,245.78,4.96084087]
[1758191764573,0.5,245.8,245.79,26.14216157]
[1758191764880,0.5,245.8,245.79,26.84216157]
[1758191765675,0.5,245.8,245.79,30.91067534]
[1758191765977,0.5,245.8,245.79,4.06851377]
[1758191766567,0.5,245.8,245.78,0.03]
[1758191766568,13.59559401,245.79,245.78,0.03]
[1758191766773,14.22559401,245.79,245.78,0.03]
[1758191766966,16.52215943,245.79,245.78,0.03]
[1758191767859,20.5906732,245.79,245.78,0.03]
[1758191769289,18.29410778,245.79,245.78,0.03]
[1758191769465,20.5906732,245.79,245.78,0.03]
[1758191769779,13.59559401,245.79,245.78,0.03]
[1758191771181,13.59559401,245.79,245.78,0.73]
[1758191771480,13.59559401,245.79,245.78,4.7986793]
[1758191772499,0.5,245.8,245.78,4.7986793]
[1758191772676,14.09559401,245.8,245.79,0.7]
[1758191774192,14.09559401,245.8,245.79,4.76851377]
[1758191774395,0.5,245.8,245.79,4.76851377]
[1758191775036,0.06,245.8,245.79,14.93979819]
[1758191775174,0.06,245.8,245.79,15.08195976]
[1758191777604,0.06,245.8,245.79,4.76851377]
[1758191779407,0.06,245.8,245.79,30.76851377]
[1758191787474,0.06,245.8,245.79,30.91067534]
[1758191789705,0.06,245.8,245.79,4.06851377]
[1758191790797,0.06,245.8,245.78,0.03]
[1758191792100,0.06,245.8,245.79,0.03]
[1758191792683,0.06,245.8,245.79,0.74]
[1758191792895,0.06,245.8,245.79,4.80851377]
[1758191796485,0.06,245.8,245.79,0.03]
[1758191798108,0.06,245.8,245.79,0.74]
[1758191798589,0.06,245.8,245.79,0.03]
[1758191800599,0.06,245.8,245.79,0.74]
[1758191800989,0.06,245.8,245.79,26.88216157]
[1758191802316,0.06,245.8,245.79,30.95067534]
[1758191807802,0.06,245.8,245.79,4.09851377]
[1758191808309,0.06,245.8,245.79,0.03]
[1758191812230,0.06,245.8,245.79,0.74]
[1758191814803,0.06,245.8,245.79,30.80851377]
[1758191817430,0.06,245.8,245.79,30.75851377]
[1758191819225,0.06,245.8,245.79,30.09851377]
[1758191819407,0.06,245.8,245.79,30.75851377]
[1758191819912,0.06,245.8,245.79,30.90067534]
[1758191822308,0.06,245.83,245.8,0.14216157]
[1758191822509,0.60460001,245.9,245.83,40.23748117]
[1758191822821,0.06,245.92,245.87,0.42648471]
[1758191823010,0.06,245.92,245.89,0.14216157]
[1758191823211,0.06,245.92,245.85,0.14216157]
[1758191823420,0.06,245.92,245.87,0.14216157]
[1758191823929,0.06,245.92,245.88,0.72]
[1758191824132,0.06,245.92,245.89,0.72]
[1758191824931,0.06,245.92,245.9,4.06669377]
[1758191826530,0.06,245.92,245.91,0.72]
[1758191828231,0.06,245.92,245.91,4.7865284]
[1758191831419,0.06,245.92,245.91,30.7865284]
[1758191834536,0.06,245.97,245.91,30.7865284]
[1758191834537,0.06,245.97,245.92,26.0]
[1758191834708,0.06,245.97,245.94,26.14216157]
[1758191834915,0.06,245.97,245.95,0.14216157]
[1758191835115,0.06,245.97,245.96,0.72]
[1758191836039,0.06,245.97,245.96,4.92786331]
[1758191839134,13.65559401,246.09,245.99,26.0]
[1758191839315,13.65559401,246.09,246.0,0.72]
[1758191839717,13.59559401,246.09,246.0,0.72]
[1758191840120,13.59559401,246.1,246.0,0.72]
[1758191840321,13.59559401,246.1,246.01,0.14216157]
[1758191840628,0.06,246.11,246.02,0.72]
[1758191841332,13.59559401,246.13,246.03,14.2259074]
[1758191841510,0.06,246.12,246.04,0.72]
[1758191841715,0.06,246.12,246.03,14.9459074]
[1758191842650,0.06,246.12,246.01,0.14216157]
[1758191842651,15.12625379,246.11,246.02,4.06471018]
[1758191842833,15.06625379,246.07,245.98,26.0]
[1758191843141,0.06,246.06,245.98,26.0]
[1758191843340,1.47065978,246.05,245.97,0.72]
[1758191843543,13.59559401,246.03,245.96,4.06570174]
[1758191843718,13.65559401,246.03,245.96,4.06570174]
[1758191844740,17.72014619,246.03,245.97,26.0]
[1758191844933,19.19080597,246.03,245.97,26.0]
[1758191845335,0.06,246.03,245.95,14.26053465]
[1758191845641,13.59559401,246.04,245.96,0.72]
[1758191846846,4.06438371,246.04,245.97,4.06553644]
[1758191847233,4.12438371,246.04,245.97,4.06553644]
[1758191848941,0.06,246.03,245.95,14.26053465]
[1758191850068,13.59559401,246.02,245.95,14.26053465]
[1758191850235,13.59559401,246.02,245.95,14.98053465]
[1758191851151,13.59559401,246.02,245.95,30.81586704]
[1758191851532,15.06625379,246.02,245.95,0.03]
[1758191851826,4.1243384,246.05,245.96,0.72]
[1758191852040,13.59559401,246.04,245.97,4.06553644]
[1758191852430,13.59559401,246.04,245.97,4.73553644]
[1758191853152,4.06443294,246.04,245.97,4.73553644]
[1758191853446,13.59559401,246.03,245.97,4.73553644]
[1758191854123,39.59559401,246.05,245.97,4.06553644]
[1758191854331,43.65984274,246.05,245.98,0.67]
[1758191856239,43.65984274,246.05,245.99,4.0652059]
[1758191857955,13.59559401,246.06,246.0,0.67]
[1758191858341,13.59559401,246.09,246.01,4.06487541]
[1758191858546,13.65559401,246.09,246.01,4.06487541]
[1758191858956,13.65559401,246.09,246.01,4.73487541]
[1758191860162,4.0635569,246.09,246.01,4.06487541]
[1758191860364,0.06,246.1,246.02,0.67]
[1758191860536,26.06,246.1,246.02,0.67]
[1758191860837,13.59559401,246.09,246.02,0.67]
[1758191861969,0.06,246.1,246.03,14.2259074]
[1758191862453,0.06,246.1,246.04,0.67]
[1758191862633,0.06,246.09,246.04,0.67]
[1758191862835,0.06,246.09,246.05,0.67]
[1758191863055,0.06,246.09,246.03,14.2259074]
[1758191863258,0.06,246.09,246.06,0.67]
[1758191864232,0.06,246.09,246.06,4.73403489]
[1758191864436,0.06,246.09,246.06,0.67]
[1758191864742,0.06,246.09,246.06,4.73403774]
[1758191864943,0.06,246.09,246.06,0.67]
[1758191865153,0.06,246.09,246.06,4.73404463]
[1758191865466,0.06,246.09,246.01,4.06487541]
[1758191865642,13.65559401,246.08,246.0,0.67]
[1758191866767,13.59559401,246.06,246.0,30.73501277]
[1758191868542,0.06,246.09,246.0,30.06501277]
[1758191868762,0.06,246.09,246.01,0.67]
[1758191869241,0.06,246.09,246.03,26.0]
[1758191869439,0.06,246.09,246.04,0.67]
[1758191870356,13.65559401,246.09,246.04,0.67]
[1758191870554,13.65559401,246.09,246.03,30.06440393]
[1758191870749,4.12364184,246.09,246.03,4.06440393]
[1758191871667,0.06,246.09,246.03,4.73440393]
[1758191871875,13.65559401,246.09,246.03,4.73440393]
[1758191873169,13.65559401,246.09,246.0,14.22764227]
[1758191873371,4.1235591,246.09,246.04,0.67]
[1758191874076,4.1235591,246.09,246.0,14.22764227]
[1758191874077,0.06,246.08,246.0,14.89764227]
[1758191874255,0.06,246.08,246.0,30.73504065]
[1758191874454,0.06,246.08,246.0,30.06504065]
[1758191874455,15.88824487,246.08,246.0,30.06504065]
[1758191874659,0.06,246.07,246.0,26.0]
[1758191875096,13.59559401,246.08,246.01,0.68]
[1758191875258,13.59559401,246.06,246.01,4.74484354]
[1758191875571,13.59559401,246.06,246.02,0.68]
[1758191877545,17.65932383,246.08,246.02,4.06469257]
[1758191877753,13.59559401,246.08,246.03,0.68]
[1758191878177,13.65559401,246.09,246.04,0.68]
[1758191878372,13.65559401,246.09,246.02,4.06469257]
[1758191878677,13.65559401,246.09,246.02,4.74469257]
[1758191878842,17.71914999,246.09,246.02,0.68]
[1758191879052,0.06,246.08,246.0,26.0]
[1758191879273,2.35265086,246.08,246.0,26.68]
[1758191879766,0.06,246.08,246.01,4.74485352]
[1758191879968,17.71914999,246.09,246.03,4.06454497]
[1758191880268,20.01180085,246.09,246.03,4.06454497]
[1758191881379,17.71914999,246.09,246.04,0.68]
[1758191881589,17.71914999,246.09,246.05,0.68]
[1758191881781,17.71914999,246.09,246.06,0.68]
[1758191881782,0.06,246.09,246.06,0.68]
[1758191881965,0.06,246.09,246.07,0.68]
[1758191882160,0.06,246.08,246.07,0.68]
[1758191883084,0.06,246.08,246.05,4.76413609]
[1758191883990,0.06,246.08,246.05,0.7]
[1758191884166,0.06,246.08,246.06,0.7]
[1758191884560,0.06,246.08,246.04,4.06422399]
[1758191885063,0.06,246.08,246.05,0.7]
[1758191885593,0.06,246.08,246.01,4.06487541]
[1758191885594,15.94824487,246.07,246.01,4.06487541]
[1758191885888,15.88824487,246.03,245.97,0.03]
[1758191886063,15.88824487,246.01,245.97,0.03]
[1758191886402,2.29265086,246.02,245.97,0.73]
[1758191886681,13.59559401,246.01,245.97,0.73]
[1758191886884,13.59559401,246.01,245.97,4.79549413]
[1758191887462,15.88824487,245.98,245.97,0.03]
[1758191888079,15.94824487,245.98,245.97,0.03]
[1758191888467,18.24089573,245.98,245.97,0.03]
[1758191888669,13.59559401,245.98,245.97,0.03]
[1758191889159,13.59559401,245.98,245.97,0.73]
[1758191889365,2.35265086,246.05,245.97,0.73]
[1758191889366,13.59559401,246.03,245.97,0.73]
[1758191889777,13.59559401,246.05,245.97,0.73]
[1758191889987,17.65981724,246.05,245.97,0.73]
[1758191890175,4.06422323,246.05,245.97,0.73]
[1758191891086,13.59559401,246.04,245.97,0.73]
[1758191891480,13.59559401,246.03,245.98,4.06537116]
[1758191891782,13.59559401,246.04,245.99,0.7]
[1758191891988,39.59559401,246.04,245.99,0.7]
[1758191892184,13.59559401,246.05,245.98,4.06537116]
[1758191892506,39.87991715,246.07,246.0,0.7]
[1758191893185,42.17256801,246.07,246.0,0.7]
[1758191893385,4.06404941,246.06,245.97,0.73]
[1758191894472,0.06,246.05,245.97,0.73]
[1758191894668,6.35670027,246.06,245.97,0.73]
[1758191894669,13.59559401,246.01,245.97,0.03]
[1758191895165,0.06,246.0,245.97,0.03]
[1758191895369,13.59559401,245.99,245.97,0.03]
[1758191895795,15.94824487,245.98,245.97,0.03]
[1758191895969,16.23256801,245.98,245.97,0.03]
[1758191897266,13.59559401,245.98,245.97,0.03]
[1758191897666,20.29793917,245.98,245.97,0.03]
[1758191898280,13.59559401,245.96,245.95,0.03]
[1758191898586,42.17256801,245.96,245.95,0.03]
[1758191898793,42.20256801,245.96,245.95,0.03]
[1758191899490,46.26826975,245.96,245.95,0.03]
[1758191902895,20.41043132,245.96,245.95,0.03]
[1758191903101,46.41043132,245.96,245.95,0.03]
[1758191903481,16.31472958,245.93,245.92,0.03]
[1758191904003,18.63738044,245.93,245.92,0.03]
[1758191904371,16.34472958,245.93,245.92,0.03]
[1758191904899,14.05207872,245.93,245.92,0.03]
[1758191905195,20.41092727,245.93,245.92,0.03]
[1758191906479,20.38092727,245.93,245.92,0.03]
[1758191907302,18.08827641,245.93,245.92,0.03]
[1758191907502,19.95444256,245.93,245.92,0.03]
[1758191907802,20.2387657,245.93,245.92,0.03]
[1758191908304,17.6617917,245.93,245.92,0.73]
[1758191908481,17.94611484,245.93,245.92,0.73]
[1758191908881,13.59559401,245.93,245.92,0.73]
[1758191911296,13.59559401,245.93,245.92,4.79636304]
[1758191913098,13.59559401,245.93,245.92,0.73]
[1758191913303,13.59559401,245.93,245.92,0.03]
[1758191913817,15.88824487,245.93,245.92,0.03]
[1758191914113,19.95444256,245.93,245.92,0.03]
[1758191914293,13.59559401,245.93,245.92,0.72]
[1758191914890,13.59559401,245.93,245.92,0.03]
[1758191915286,17.6617917,245.93,245.92,0.03]
[1758191915487,19.95444256,245.93,245.92,0.03]
[1758191915686,17.6617917,245.93,245.92,0.03]
[1758191915904,13.59559401,245.93,245.92,0.03]
[1758191916097,15.88824487,245.93,245.92,0.03]
[1758191916298,20.2387657,245.93,245.92,0.03]
[1758191916487,20.41092727,245.93,245.92,0.03]
[1758191917290,20.38092727,245.93,245.92,0.03]
[1758191917590,13.59559401,245.93,245.92,0.72]
[1758191919001,14.14176442,245.93,245.92,0.72]
[1758191919204,14.14176442,245.93,245.92,4.78636304]
[1758191919712,14.14176442,245.93,245.92,0.72]
[1758191919918,14.14176442,245.93,245.92,0.03]
[1758191920129,16.43441528,245.93,245.92,0.03]
[1758191920918,16.43441528,245.93,245.92,0.72]
[1758191921216,14.14176442,245.93,245.92,0.03]
[1758191922304,14.14176442,245.93,245.92,0.72]
[1758191923313,14.14176442,245.93,245.92,4.78636304]
[1758191925324,14.14176442,245.93,245.92,0.03]
[1758191925493,14.14176442,245.93,245.92,0.72]
[1758191925699,14.14176442,245.93,245.92,4.78636304]
[1758191928532,14.14176442,245.93,245.92,0.72]
[1758191928904,14.14176442,245.93,245.92,4.78636304]
[1758191931627,14.14176442,245.93,245.92,0.72]
[1758191932135,19.67713337,245.93,245.92,0.03]
[1758191933711,18.20796211,245.93,245.92,0.03]
[1758191934005,15.61093568,245.93,245.92,0.03]
[1758191934317,14.14176442,245.93,245.92,0.03]
[1758191934899,14.14176442,245.93,245.92,0.75]
[1758191935525,14.14176442,245.93,245.92,4.81636304]
[1758191937646,14.14176442,245.93,245.92,0.03]
[1758191938015,18.20796211,245.93,245.92,0.03]
[1758191939623,14.14176442,245.93,245.92,0.03]
[1758191942138,14.14176442,245.93,245.92,0.75]
[1758191943932,14.14176442,245.93,245.92,4.81636304]
[1758191946939,0.54617041,245.93,245.92,4.81636304]
[1758191947925,0.54617041,245.93,245.92,30.81636304]
[1758191950317,0.54617041,245.93,245.92,30.95852461]
[1758191953248,0.54617041,245.93,245.92,4.81636304]
[1758191953438,14.14176442,245.93,245.92,0.03]
[1758191955737,14.14176442,245.93,245.92,0.73]
[1758191956751,14.14176442,245.93,245.92,4.79636304]
[1758191956943,0.54617041,245.93,245.92,4.79636304]
[1758191957251,0.54617041,245.93,245.92,30.79636304]
[1758191958535,0.54617041,245.93,245.92,30.93852461]
[1758191958947,0.54617041,245.93,245.92,30.79636304]
[1758191959530,0.54617041,245.93,245.92,30.09636304]
[1758191960131,0.54617041,245.93,245.92,30.79636304]
[1758191960333,0.54617041,245.93,245.92,4.79636304]
[1758191960532,0.54617041,245.93,245.92,0.03]
[1758191960533,14.14176442,245.93,245.92,0.03]
[1758191962447,14.14176442,245.93,245.92,0.73]
[1758191963160,14.14176442,245.93,245.92,4.09636304]
[1758191963952,14.14176442,245.93,245.92,0.03]
[1758191966444,19.67713337,245.93,245.92,0.03]
[1758191966646,19.70713337,245.93,245.92,0.03]
[1758191966851,19.16096296,245.93,245.92,0.03]
[1758191968657,17.6617917,245.93,245.92,0.03]
[1758191969879,19.13096296,245.93,245.92,0.03]
[1758191970369,19.16096296,245.93,245.92,0.03]
[1758191971365,19.13096296,245.93,245.92,0.03]
[1758191973858,13.59559401,245.93,245.92,0.03]
[1758191976856,13.59559401,245.93,245.92,0.75]
[1758191978055,0.06,245.95,245.93,4.06619769]
[1758191978360,0.06,245.95,245.92,4.81635068]
[1758191978754,0.06,245.95,245.93,0.72]
[1758191980870,0.06,245.95,245.94,4.06603236]
[1758191981284,0.06,245.95,245.93,0.72]
[1758191981488,0.06,245.95,245.94,0.72]
[1758191982467,0.06,245.95,245.94,4.78603236]
[1758191988283,0.06,245.95,245.94,30.92819393]
[1758191996688,0.06,245.95,245.94,30.78603236]
[1758191996870,0.06,245.95,245.94,30.92819393]
[1758192004383,0.06,245.95,245.94,30.06603236]
[1758192004986,0.06,245.95,245.93,4.0661959]
[1758192005283,0.06,245.95,245.92,0.03]
[1758192005481,0.06,245.95,245.93,0.67]
[1758192005700,0.06,245.95,245.94,0.67]
[1758192005889,0.06,245.95,245.94,30.73603236]
[1758192006203,0.06,245.95,245.94,30.87819393]
[1758192006897,0.06,245.95,245.94,30.06603236]
[1758192008793,0.06,245.95,245.93,4.06618359]
[1758192009302,0.06,245.95,245.94,0.67]
[1758192009479,0.06,245.95,245.94,26.67]
[1758192010700,0.06,245.95,245.94,30.73603236]
[1758192012099,0.06,245.95,245.94,30.06603236]
[1758192014500,0.06,245.95,245.94,30.73603236]
[1758192018806,0.06,245.95,245.94,30.06603236]
[1758192019306,0.06,245.95,245.94,30.73603236]
[1758192020213,0.06,245.95,245.94,30.87819393]
[1758192020806,0.06,245.98,245.95,26.14216157]
[1758192020995,0.06,245.98,245.95,26.81216157]
[1758192021196,0.06,245.98,245.96,0.67]
[1758192021696,0.06,245.98,245.97,0.67]
[1758192022097,0.06,245.98,245.97,4.73553644]
[1758192023007,0.06,245.98,245.97,30.73553644]
[1758192023895,0.06,245.98,245.97,30.87769801]
[1758192030718,0.06,245.98,245.97,30.06553644]
[1758192031131,0.06,245.98,245.97,4.06553644]
[1758192031420,0.09,245.98,245.95,4.06586704]
[1758192031921,0.06,245.98,245.95,4.06586704]
[1758192032524,0.06,245.98,245.96,0.69]
[1758192033318,0.06,245.98,245.97,4.06553644]
[1758192034821,0.06,245.98,245.95,10.16466761]
[1758192035022,0.06,245.98,245.95,10.85466761]
[1758192037321,0.06,245.98,245.95,14.92053465]
[1758192038322,0.06,245.98,245.94,0.03]
[1758192038629,0.03,245.97,245.94,0.03]
[1758192039719,13.62559401,245.97,245.94,0.03]
[1758192041323,1.71697525,245.98,245.95,0.69]
[1758192041324,0.06,245.98,245.95,0.69]
[1758192041623,0.06,245.98,245.94,0.03]
[1758192042226,0.06,245.98,245.94,0.72]
[1758192042605,0.06,245.98,245.94,0.03]
[1758192043504,0.06,245.98,245.94,0.72]
[1758192044322,0.06,245.98,245.95,0.69]
[1758192044727,0.06,245.98,245.96,0.69]
[1758192044924,0.06,245.98,245.97,0.69]
[1758192045107,0.06,245.98,245.97,4.75553644]
[1758192055514,0.06,245.98,245.97,4.89769801]
[1758192055714,0.06,245.98,245.97,6.5244086]
[1758192058854,0.06,246.0,245.97,16.68824971]
[1758192059144,0.06,246.0,245.99,26.14216157]
[1758192059323,0.06,246.01,246.0,26.14216157]
[1758192059722,0.06,246.01,246.0,26.85216157]
[1758192060120,0.06,246.01,246.0,39.05050666]
[1758192060328,0.06,246.01,246.0,43.11554731]
[1758192061820,0.06,246.01,246.0,42.26338574]
[1758192062020,0.06,246.01,246.0,30.06504065]
[1758192062647,0.06,246.01,246.0,30.74504065]
[1758192065546,0.06,246.01,246.0,30.06504065]
[1758192065920,0.06,246.01,246.0,30.74504065]
[1758192069541,0.06,246.01,246.0,30.88720222]
[1758192069742,0.06,246.01,246.0,32.51364823]
[1758192071261,0.06,246.01,246.0,31.69148666]
[1758192071444,0.06,246.01,246.0,30.06504065]
[1758192072777,0.06,246.01,246.0,30.74504065]
[1758192073071,0.06,246.01,246.0,4.74504065]
[1758192073363,0.06,246.01,246.0,4.06504065]
[1758192073867,0.06,246.01,246.0,4.74504065]
[1758192074162,0.06,246.01,246.0,4.06504065]
[1758192074359,0.06,246.01,246.0,4.74504065]
[1758192075664,0.09,246.01,245.98,4.06537116]
[1758192075966,0.06,246.01,245.98,4.06537116]
[1758192077261,0.06,246.01,246.0,0.03]
[1758192077458,19.18842953,246.01,246.0,0.03]
[1758192077862,19.21842953,246.01,246.0,0.03]
[1758192078271,13.68559401,246.01,246.0,0.03]
[1758192079046,19.21842953,246.01,246.0,0.03]
[1758192081268,13.65559401,246.01,246.0,0.03]
[1758192082084,19.21842953,246.01,246.0,0.03]
[1758192082375,24.27861868,246.01,246.0,0.03]
[1758192083375,39.59559401,245.97,245.95,0.03]
[1758192083576,15.34787726,245.96,245.95,0.03]
[1758192083871,13.87991715,245.95,245.94,0.03]
[1758192084054,1.75228325,245.95,245.94,0.03]
[1758192084574,39.59559401,245.92,245.91,1e-08]
[1758192084760,42.81583737,245.92,245.91,1e-08]
[1758192085078,14.02207872,245.91,245.87,0.03]
[1758192085278,39.73775558,245.88,245.87,0.03]
[1758192085473,47.36187927,245.88,245.87,0.03]
[1758192085984,48.9904443,245.88,245.87,0.03]
[1758192086157,60.25384437,245.88,245.87,0.03]
[1758192086754,52.91404382,245.88,245.87,0.03]
[1758192086962,26.48755911,245.88,245.87,0.03]
[1758192087578,24.85899408,245.88,245.87,0.03]
[1758192090764,24.85899408,245.88,245.87,0.71]
[1758192090969,24.85899408,245.88,245.87,0.03]
[1758192093579,24.85899408,245.88,245.87,0.75]
[1758192097583,11.26340007,245.88,245.87,0.75]
[1758192097981,11.26340007,245.88,245.87,4.81718997]
[1758192106569,0.06,245.89,245.87,4.95935154]
[1758192106776,0.06,245.89,245.88,0.14216157]
[1758192106990,0.06,245.89,245.88,0.86216157]
[1758192107508,0.06,245.89,245.88,4.92918613]